bitfinex-derivatives/quotes_ETHF0:USTF0_20250604
["timestamp","ask_amount","ask_price","bid_price","bid_amount"]
[1749044260356,1.00937746,2622.9,2622.8,0.76211]
[1749044260559,1.00937746,2622.9,2622.8,5.39911]
[1749044263457,1.00937746,2622.9,2622.8,0.76211]
[1749044263656,1.00937746,2622.9,2622.8,5.39911]
[1749044264562,1.01029779,2622.9,2622.8,5.39911]
[1749044265565,1.01029779,2622.9,2622.8,10.39911]
[1749044266365,1.01029779,2622.9,2622.8,0.76211]
[1749044266564,1.01029779,2622.9,2622.8,23.07011]
[1749044266965,1.01029779,2622.9,2622.8,24.34111]
[1749044267667,1.01029779,2622.9,2622.8,29.34111]
[1749044268372,1.01029779,2622.9,2622.8,24.34111]
[1749044268570,0.06731476,2622.9,2622.8,24.34111]
[1749044268769,0.22725174,2622.9,2622.8,29.63922653]
[1749044269367,0.2945665,2622.9,2622.8,29.63922653]
[1749044270370,0.2945665,2622.9,2622.8,24.63922653]
[1749044272761,6.5e-06,2622.9,2622.8,30.28922653]
[1749044273568,0.00571592,2623.5,2623.4,0.76194]
[1749044273764,5.92e-06,2623.5,2623.4,8.60574]
[1749044273964,5.92e-06,2623.5,2623.4,49.40574]
[1749044274163,5.92e-06,2623.5,2623.4,51.32074]
[1749044276468,5.92e-06,2623.5,2623.4,56.32074]
[1749044278375,5.92e-06,2623.5,2623.4,51.32074]
[1749044283765,5.92e-06,2623.5,2623.4,8.60474]
[1749044284669,1.00304367,2623.5,2623.4,8.60474]
[1749044288670,3.67e-06,2623.5,2623.4,8.60474]
[1749044288876,0.6383,2623.7,2623.6,0.76188]
[1749044290077,0.6383,2623.7,2623.6,2.02218]
[1749044291576,3.2078,2624.9,2624.8,0.76153]
[1749044291771,4.4372,2624.9,2624.8,0.76153]
[1749044291966,9.4372,2624.9,2624.8,0.76153]
[1749044292277,4.4372,2624.9,2624.8,0.76153]
[1749044293580,1.2294,2624.9,2624.8,0.76153]
[1749044293985,0.6303,2625.0,2624.9,0.7615]
[1749044294676,5.6303,2625.0,2624.6,3.21351592]
[1749044294876,1.2466,2624.9,2624.8,0.76153]
[1749044295285,6.2466,2624.9,2624.8,0.76153]
[1749044295475,1.2466,2624.9,2624.8,0.76153]
[1749044296478,0.6303,2625.0,2624.9,0.7615]
[1749044296980,5.6303,2625.0,2624.6,4.63971592]
[1749044297177,3.2078,2624.8,2624.7,0.76154]
[1749044297685,1.2093,2624.8,2624.7,0.76154]
[1749044298174,0.6303,2625.0,2624.9,0.7615]
[1749044300079,0.69761476,2625.0,2624.9,0.7615]
[1749044300686,1.64304578,2625.0,2624.9,0.7615]
[1749044301174,1.01274578,2625.0,2624.9,0.7615]
[1749044301775,1.01274578,2625.0,2624.9,2.684]
[1749044302073,3.2078,2625.8,2625.7,0.76127]
[1749044302681,3.2078,2625.8,2625.2,3.2078]
[1749044302682,8.96905,2625.8,2625.2,1.9035]
[1749044302880,1.8848,2625.7,2625.5,0.76131]
[1749044303087,1.8848,2625.7,2625.3,4.631]
[1749044303287,0.6509,2625.6,2625.5,0.76131]
[1749044303983,0.6509,2625.6,2625.5,5.39233]
[1749044304187,1.9121,2625.6,2625.5,0.76133]
[1749044304888,1.9121,2625.6,2625.4,4.631]
[1749044305080,2.67341,2625.6,2625.0,1.90365]
[1749044305279,1.9121,2625.6,2625.5,0.76133]
[1749044305487,1.9121,2625.6,2625.2,4.631]
[1749044305692,3.2078,2625.5,2625.2,4.631]
[1749044305878,3.2078,2625.5,2625.4,0.76136]
[1749044306280,8.2078,2625.5,2625.4,0.76136]
[1749044306680,0.76136,2625.4,2625.0,1.90365]
[1749044306882,3.2078,2625.2,2625.0,0.76146]
[1749044307182,0.06731476,2625.0,2624.9,0.7615]
[1749044308391,0.67551476,2625.0,2624.9,0.7615]
[1749044311308,0.06731476,2625.0,2624.9,0.7615]
[1749044312707,0.06731476,2625.0,2624.9,2.0644]
[1749044313305,0.06731476,2625.0,2624.9,5.3915]
[1749044313810,0.06731476,2625.0,2624.9,0.7615]
[1749044314006,1.00790727,2625.0,2624.9,0.7615]
[1749044314413,1.00790727,2625.0,2624.9,2.0644]
[1749044315014,1.00790727,2625.0,2624.9,5.2722]
[1749044315918,0.06731476,2625.0,2624.9,5.2722]
[1749044316411,1.00820998,2625.0,2624.9,5.2722]
[1749044316610,0.06731476,2625.0,2624.9,5.2722]
[1749044317214,4.76e-06,2625.0,2624.9,5.2722]
[1749044321117,4.76e-06,2625.0,2624.9,9.9022]
[1749044322412,3.01287886,2626.5,2624.9,14.1407]
[1749044322618,3.2078,2626.6,2626.1,1.9029]
[1749044322813,3.2078,2626.3,2626.2,4.63]
[1749044323322,1.2198,2626.5,2626.2,5.39111]
[1749044323519,3.2078,2626.6,2626.4,0.76107]
[1749044323826,3.2078,2626.6,2626.2,4.63]
[1749044324022,3.2078,2626.6,2626.5,0.76104]
[1749044324223,3.2078,2626.6,2626.4,0.76105]
[1749044324426,5.29841,2626.6,2626.4,0.76105]
[1749044324627,3.2078,2626.6,2626.5,0.76104]
[1749044325020,8.2078,2626.6,2626.5,0.76104]
[1749044325215,3.2078,2626.6,2626.5,0.76104]
[1749044325923,8.96882,2626.6,2626.1,1.90859592]
[1749044326121,1.3296,2626.5,2626.4,0.76107]
[1749044326533,3.2078,2626.6,2626.5,0.76104]
[1749044327031,8.2078,2626.6,2626.5,0.76104]
[1749044328231,9.5354,2626.6,2626.5,0.76104]
[1749044328435,10.29641,2626.6,2626.5,0.76104]
[1749044328929,10.30194881,2626.6,2626.5,0.76104]
[1749044329133,9.54093881,2626.6,2626.5,0.76104]
[1749044329331,8.21333881,2626.6,2626.5,0.76104]
[1749044329933,8.97434881,2626.6,2626.5,0.76104]
[1749044330327,0.76104,2626.5,2626.4,0.76105]
[1749044330630,0.76107,2626.4,2626.2,4.629]
[1749044330830,0.6298,2626.4,2626.3,0.76108]
[1749044332232,3.28065357,2626.6,2626.5,0.76104]
[1749044333240,0.07285357,2626.6,2626.5,0.76104]
[1749044334034,0.07285357,2626.6,2626.5,5.38804]
[1749044334429,1.02979842,2626.6,2626.5,5.38804]
[1749044335030,1.67649842,2626.6,2626.5,5.38804]
[1749044336124,1.02979842,2626.6,2626.5,5.38804]
[1749044336529,1.02979842,2626.6,2626.5,0.76104]
[1749044336735,1.02979842,2626.6,2626.5,5.38804]
[1749044336936,1.02979842,2626.6,2626.5,8.59584]
[1749044337533,1.02890617,2626.6,2626.5,13.59584]
[1749044337929,1.02890617,2626.6,2626.5,3.96884]
[1749044338135,1.02890617,2626.6,2626.5,5.38804]
[1749044338330,1.02890617,2626.6,2626.5,8.59584]
[1749044339136,1.02890617,2626.6,2626.5,13.59584]
[1749044339440,0.06732093,2626.6,2626.5,13.59584]
[1749044339639,0.06731476,2626.6,2626.5,13.59584]
[1749044340433,4.76e-06,2626.6,2626.5,13.59584]
[1749044341131,4.76e-06,2626.6,2626.5,8.59484]
[1749044341438,4.76e-06,2626.6,2626.5,0.76104]
[1749044341638,4.76e-06,2626.6,2626.5,5.38704]
[1749044342141,4.76e-06,2626.6,2626.5,8.59484]
[1749044342433,4.76e-06,2626.6,2626.5,13.59484]
[1749044342840,3.2078,2627.4,2627.3,0.76081]
[1749044343036,3.2078,2627.4,2627.3,5.38681]
[1749044344032,3.2078,2627.4,2627.3,6.62001]
[1749044344230,3.2078,2627.7,2627.6,0.76072]
[1749044344428,1.42784,2627.9,2627.7,0.76068]
[1749044344637,0.76072,2627.6,2627.5,4.626]
[1749044344938,3.2078,2627.6,2627.5,0.76075]
[1749044345439,3.2078,2627.6,2627.5,5.38675]
[1749044346032,3.2078,2627.6,2627.5,0.76075]
[1749044346228,3.2078,2627.6,2627.5,5.38675]
[1749044346429,3.2078,2627.6,2627.5,0.76075]
[1749044346839,3.2078,2627.6,2627.5,5.38675]
[1749044347835,3.2078,2627.6,2627.5,0.76075]
[1749044348341,3.2078,2627.6,2627.4,0.76647592]
[1749044348342,0.76075,2627.5,2627.4,0.76647592]
[1749044348641,2.05155,2627.5,2627.4,0.00571592]
[1749044348836,8.28975,2627.5,2627.4,0.00571592]
[1749044349142,8.28975,2627.5,2627.4,0.76649592]
[1749044349442,2.529,2627.5,2627.4,0.76649592]
[1749044349839,1.2908,2627.5,2627.4,0.76649592]
[1749044350433,1.2908,2627.5,2627.4,5.39149592]
[1749044350638,2.05155,2627.5,2627.4,0.76649592]
[1749044350939,3.28975,2627.5,2627.4,0.76649592]
[1749044351141,8.28975,2627.5,2627.4,0.00571592]
[1749044351346,9.25967738,2627.5,2627.4,0.00571592]
[1749044352738,9.25980418,2627.5,2627.4,0.76649592]
[1749044353138,9.25980418,2627.5,2627.4,0.00571592]
[1749044353350,2.26085418,2627.5,2627.4,0.76649592]
[1749044353550,3.02160418,2627.5,2627.4,0.76649592]
[1749044353847,8.02160418,2627.5,2627.4,0.76649592]
[1749044354153,9.24290418,2627.5,2627.4,0.00571592]
[1749044354445,12.25578304,2627.5,2627.4,0.00571592]
[1749044354645,0.76103,2626.6,2626.1,1.90283]
[1749044354848,0.97005418,2626.5,2626.4,6.66447]
[1749044355038,3.2078,2626.6,2626.4,6.66447]
[1749044355237,3.2078,2626.6,2626.5,0.76104]
[1749044355436,4.17890392,2626.6,2626.5,0.76104]
[1749044355642,4.17890392,2626.6,2626.4,5.9034]
[1749044355643,4.17890392,2626.6,2626.4,0.76104]
[1749044355843,1.60730392,2626.5,2626.4,0.76104]
[1749044356651,1.60755633,2626.5,2626.4,0.76104]
[1749044357245,0.97135633,2626.5,2626.4,1.98764]
[1749044357838,0.97135633,2626.5,2626.4,2.59524]
[1749044359251,3.2078,2626.6,2626.5,0.76104]
[1749044359444,4.17862025,2626.6,2626.5,2.09454]
[1749044360755,4.17900818,2626.6,2626.5,2.09454]
[1749044361346,4.17900818,2626.6,2626.5,1.3335]
[1749044361554,4.17900818,2626.6,2626.5,5.41204]
[1749044362047,4.94001818,2626.6,2626.5,4.651]
[1749044362851,4.17900818,2626.6,2626.5,5.41204]
[1749044364847,3.2078,2626.6,2626.5,5.41204]
[1749044365044,4.17969351,2626.6,2626.5,5.41204]
[1749044367253,4.17969351,2626.6,2626.5,0.76104]
[1749044367455,4.17969351,2626.6,2626.5,5.41204]
[1749044368749,0.97189351,2626.6,2626.5,8.61984]
[1749044369152,0.00571592,2626.8,2626.7,0.76098]
[1749044369355,0.97816042,2626.8,2626.7,0.76098]
[1749044370655,0.97816042,2626.8,2626.6,1.8885]
[1749044370847,1.6064445,2626.7,2626.6,2.64951]
[1749044371253,1.6064445,2626.7,2626.6,0.76101]
[1749044372355,2.3674245,2626.7,2626.5,4.651]
[1749044372556,0.9724445,2626.6,2626.5,5.41204]
[1749044372945,0.9724445,2626.6,2626.3,0.00571592]
[1749044373157,4.18023776,2626.5,2626.4,0.76105]
[1749044374051,4.24755252,2626.5,2626.4,0.76105]
[1749044374955,4.24755252,2626.5,2626.4,2.05065]
[1749044375262,4.24805233,2626.5,2626.4,2.05065]
[1749044376365,4.24805233,2626.5,2626.4,6.70265]
[1749044377367,4.24811266,2626.5,2626.4,6.70265]
[1749044380661,0.76107,2626.4,2626.3,0.00571592]
[1749044380868,0.9729979,2626.4,2626.3,0.76681592]
[1749044381265,0.06731476,2626.5,2626.3,1.21101592]
[1749044381463,0.06731476,2626.5,2626.4,0.76107]
[1749044381771,1.04115005,2626.5,2626.4,0.76107]
[1749044381972,1.04115005,2626.5,2626.4,2.02857]
[1749044382572,1.04122168,2626.5,2626.4,2.02857]
[1749044384074,1.04122168,2626.5,2626.4,0.76107]
[1749044384370,0.76107,2626.4,2626.3,0.00571592]
[1749044384566,1.63090692,2626.4,2626.3,0.76679592]
[1749044384765,0.97390692,2626.4,2626.3,0.76679592]
[1749044384962,0.97390692,2626.4,2626.3,2.00629592]
[1749044385165,0.97390692,2626.4,2626.3,0.76679592]
[1749044385376,1.73497692,2626.4,2626.3,0.76679592]
[1749044385574,3.91581476,2626.5,2626.4,0.76107]
[1749044385871,4.88986394,2626.5,2626.4,0.76107]
[1749044386674,4.24916394,2626.5,2626.4,0.76107]
[1749044387771,5.01020394,2626.5,2626.4,0.76107]
[1749044387966,0.76107,2626.4,2626.3,0.00571592]
[1749044388172,2.40051918,2626.4,2626.3,0.00571592]
[1749044388373,1.63944918,2626.4,2626.3,0.76681592]
[1749044389770,1.62902627,2626.4,2626.3,0.76681592]
[1749044390771,2.39009627,2626.4,2626.3,0.76681592]
[1749044390970,1.62902627,2626.4,2626.3,0.76681592]
[1749044391277,1.69634103,2626.4,2626.3,0.76681592]
[1749044392575,2.45741103,2626.4,2626.3,0.76681592]
[1749044392775,1.69634103,2626.4,2626.3,0.76681592]
[1749044392976,2.45741103,2626.4,2626.3,0.76681592]
[1749044393170,2.45741103,2626.4,2626.3,0.00571592]
[1749044393481,3.73271103,2626.4,2626.3,0.76681592]
[1749044393775,1.49378476,2626.4,2626.3,0.76681592]
[1749044394075,2.46086786,2626.4,2626.3,0.76681592]
[1749044394377,1.69979786,2626.4,2626.3,0.76681592]
[1749044394677,2.46086786,2626.4,2626.3,0.76681592]
[1749044397473,1.03439786,2626.4,2626.3,0.76681592]
[1749044398072,1.03428893,2626.4,2626.3,0.76681592]
[1749044400380,1.03428893,2626.4,2626.3,3.97461592]
[1749044400674,1.02857301,2626.4,2626.3,8.97461592]
[1749044401076,1.02857301,2626.4,2626.3,5.40581592]
[1749044401885,1.02857301,2626.4,2626.3,7.39721592]
[1749044403478,1.02857301,2626.4,2626.3,12.39721592]
[1749044404689,0.13036301,2626.4,2626.3,12.39721592]
[1749044404980,0.00571592,2626.8,2626.7,0.76099]
[1749044405173,0.00571592,2626.8,2626.7,5.39999]
[1749044405776,0.00571592,2626.8,2626.7,1.40669]
[1749044405977,3.21351592,2626.8,2626.3,1.90846592]
[1749044406180,3.21351592,2626.8,2626.6,0.761]
[1749044406181,0.6043,2626.7,2626.6,0.761]
[1749044406775,0.6043,2626.7,2626.3,1.91461592]
[1749044406988,0.76107,2626.4,2626.3,0.00571592]
[1749044407478,2.15498476,2626.4,2626.3,0.00571592]
[1749044407687,1.39391476,2626.4,2626.3,0.76681592]
[1749044408191,0.06731476,2626.4,2626.3,0.76681592]
[1749044410483,0.06731476,2626.4,2626.3,0.00571592]
[1749044410688,0.06731476,2626.4,2626.3,0.76681592]
[1749044410689,0.82838476,2626.4,2626.3,0.76681592]
[1749044411182,0.06731476,2626.4,2626.3,0.76681592]
[1749044411784,0.82838476,2626.4,2626.3,0.76681592]
[1749044411978,0.82838476,2626.4,2626.3,0.00571592]
[1749044412282,2.12178476,2626.4,2626.3,0.76681592]
[1749044413286,2.12178476,2626.4,2626.3,0.00571592]
[1749044413482,2.12178476,2626.4,2625.7,1.2691]
[1749044413483,1.9028,2626.3,2625.7,1.2691]
[1749044413683,3.2078,2625.8,2625.7,0.76127]
[1749044414181,4.61155,2625.8,2625.7,0.76127]
[1749044414378,4.61155,2625.8,2625.3,4.639]
[1749044414379,3.8503,2625.8,2625.3,4.639]
[1749044414577,3.2078,2625.5,2625.4,0.76136]
[1749044414787,0.7613,2625.7,2625.6,0.7613]
[1749044414987,0.76132,2625.6,2625.5,0.76132]
[1749044415186,3.8503,2625.8,2625.3,5.91381592]
[1749044415389,3.2078,2625.5,2625.4,0.76136]
[1749044415585,3.2078,2625.5,2625.4,2.04516]
[1749044415793,3.96914,2625.5,2625.4,0.76136]
[1749044415995,0.76136,2625.4,2625.3,4.64471592]
[1749044416285,1.40386,2625.4,2625.3,0.76710592]
[1749044416590,2.36381086,2625.4,2625.3,0.76710592]
[1749044416784,2.36381086,2625.4,2625.3,0.00571592]
[1749044416991,2.36381615,2625.4,2625.3,0.76710592]
[1749044418381,1.60245615,2625.4,2625.3,0.76710592]
[1749044418790,2.36381615,2625.4,2625.3,0.76710592]
[1749044418986,2.36381615,2625.4,2625.3,0.00571592]
[1749044419486,4.25941615,2625.4,2625.3,0.00571592]
[1749044419789,3.01641615,2625.4,2625.3,0.00571592]
[1749044420989,2.05646,2625.4,2625.3,0.00571592]
[1749044421289,0.76153,2624.9,2624.8,0.76152]
[1749044421486,0.76153,2624.9,2624.8,0.76153]
[1749044421691,0.76153,2624.9,2624.7,0.76156]
[1749044421692,0.76154,2624.8,2624.7,0.76156]
[1749044421887,0.76157,2624.7,2624.6,0.76157]
[1749044422096,0.7616,2624.6,2624.5,1.3722]
[1749044422399,4.16492707,2624.7,2624.6,0.7616]
[1749044422400,3.96939,2624.7,2624.6,0.7616]
[1749044422585,4.92579415,2624.7,2624.6,0.7616]
[1749044423399,0.95640415,2624.7,2624.6,0.7616]
[1749044423586,0.95640415,2624.7,2624.6,2.0712]
[1749044424388,0.95640415,2624.7,2624.6,0.7616]
[1749044424592,0.7616,2624.6,2624.5,1.37221]
[1749044424787,0.76158,2624.7,2624.6,0.7616]
[1749044424994,0.76159,2624.7,2624.6,0.76159]
[1749044425296,1.71637249,2624.7,2624.6,0.76159]
[1749044425497,4.92417249,2624.7,2624.6,0.76159]
[1749044425697,4.16258249,2624.7,2624.6,0.76159]
[1749044425893,4.92415249,2624.7,2624.6,0.76159]
[1749044426095,0.7616,2624.6,2624.5,2.6467]
[1749044426403,1.71638249,2624.6,2624.5,2.6467]
[1749044426896,0.95478249,2624.6,2624.5,2.6467]
[1749044428299,0.00571592,2624.9,2624.8,0.76154]
[1749044428496,0.95932613,2624.9,2624.8,0.76154]
[1749044429205,0.95939484,2624.9,2624.8,1.42224]
[1749044429391,0.95939484,2624.9,2624.8,6.05224]
[1749044429597,0.00571592,2624.9,2624.8,6.05224]
[1749044431695,3.2078,2625.5,2625.4,0.76136]
[1749044431901,4.92287286,2625.5,2625.4,0.76136]
[1749044432198,4.16153286,2625.5,2625.4,0.76136]
[1749044432503,4.16153286,2625.5,2625.3,0.76137]
[1749044432803,0.95373286,2625.4,2625.3,0.76139]
[1749044432995,0.95373286,2625.4,2625.3,2.03699]
[1749044433196,3.2078,2625.5,2625.4,0.76136]
[1749044433500,4.16207958,2625.5,2625.4,1.98176]
[1749044435596,4.16207958,2625.5,2625.4,0.76136]
[1749044435901,4.87189434,2625.5,2625.4,0.76136]
[1749044437604,4.87413758,2625.5,2625.4,0.76136]
[1749044439395,4.87413758,2625.5,2625.3,0.76138]
[1749044439599,0.95652282,2625.4,2625.3,0.76139]
[1749044441707,3.27511476,2625.5,2625.4,0.76136]
[1749044442012,4.23323919,2625.5,2625.4,0.76136]
[1749044442713,4.23356891,2625.5,2625.4,0.76136]
[1749044444209,1.02576891,2625.5,2625.4,0.76136]
[1749044448916,8.91e-06,2625.7,2625.6,0.76131]
[1749044449124,8.91e-06,2625.7,2625.6,49.39811]
[1749044449328,8.91e-06,2625.7,2625.6,54.39811]
[1749044450119,3.67e-06,2625.7,2625.6,54.39811]
[1749044451124,9.59e-06,2625.9,2625.8,0.76125]
[1749044451323,9.59e-06,2625.9,2625.8,18.40725]
[1749044451520,9.59e-06,2625.9,2625.8,23.40725]
[1749044453823,9.59e-06,2625.9,2625.8,5.76125]
[1749044454124,9.59e-06,2625.9,2625.8,5.38825]
[1749044457124,9.59e-06,2625.9,2625.8,8.59605]
[1749044457529,9.59e-06,2625.9,2625.8,9.21195]
[1749044458121,9.59e-06,2625.9,2625.8,14.21195]
[1749044459635,9.59e-06,2625.9,2625.8,4.58495]
[1749044459928,9.59e-06,2625.9,2625.8,26.85495]
[1749044460325,9.59e-06,2625.9,2625.8,9.21195]
[1749044460627,9.59e-06,2625.9,2625.8,8.59605]
[1749044460830,0.95220275,2625.9,2625.8,8.59605]
[1749044461228,0.95221423,2625.9,2625.8,5.38825]
[1749044461428,2.22201423,2625.9,2625.8,5.38825]
[1749044463531,0.17871423,2625.9,2625.8,8.59605]
[1749044463730,0.6253,2626.6,2626.5,0.76105]
[1749044464234,0.69261476,2626.6,2626.5,0.76105]
[1749044467636,2.01171476,2626.6,2626.5,0.76105]
[1749044469735,2.01171476,2626.6,2626.4,0.76105]
[1749044469940,2.77274476,2626.6,2626.2,4.626]
[1749044470138,2.01171476,2626.6,2626.2,6.52883]
[1749044470337,2.01171476,2626.6,2626.1,1.90291]
[1749044470640,3.2078,2626.4,2626.3,0.76108]
[1749044471137,3.2078,2626.4,2626.1,4.626]
[1749044471346,2.03772,2626.3,2626.1,5.38714]
[1749044471549,0.644,2626.2,2626.1,5.38714]
[1749044471733,1.9206,2626.2,2626.1,5.38714]
[1749044471930,2.68173,2626.2,2626.1,4.626]
[1749044472231,2.68173,2626.2,2625.9,0.76122]
[1749044472232,0.76119,2626.0,2625.9,0.76122]
[1749044472538,3.2078,2626.0,2625.8,4.626]
[1749044472728,3.2078,2626.0,2625.8,5.38725]
[1749044472729,1.223,2625.9,2625.8,5.38725]
[1749044473834,0.6632,2626.1,2625.8,4.626]
[1749044474039,0.6632,2626.1,2626.0,0.76119]
[1749044474339,1.8862,2626.1,2626.0,0.76119]
[1749044474929,0.6632,2626.1,2626.0,0.76119]
[1749044475742,1.62287005,2626.1,2626.0,0.76119]
[1749044475936,0.95967005,2626.1,2626.0,0.76119]
[1749044477134,0.6552,2626.2,2626.0,0.76119]
[1749044477329,0.6552,2626.2,2626.1,0.76116]
[1749044477543,1.61513455,2626.2,2626.1,0.76116]
[1749044478246,0.95993455,2626.2,2626.1,0.76116]
[1749044480435,1.02724931,2626.2,2626.1,0.76116]
[1749044481346,1.02739065,2626.2,2626.1,0.76116]
[1749044482145,1.02739065,2626.2,2626.1,5.76116]
[1749044483032,3.8096,2626.8,2626.1,5.76116]
[1749044483033,3.8096,2626.8,2626.7,0.76099]
[1749044483343,0.96028369,2626.8,2626.7,8.59379]
[1749044483542,0.96028369,2626.8,2626.7,54.39379]
[1749044483843,0.96028369,2626.8,2626.7,13.59379]
[1749044484042,0.96028369,2626.8,2626.7,13.90293452]
[1749044484244,0.96028369,2626.8,2626.7,9.55353452]
[1749044484846,0.96028369,2626.8,2626.7,50.35353452]
[1749044485546,3.8585,2627.4,2627.3,0.76081]
[1749044487240,3.2078,2627.4,2627.3,0.76081]
[1749044488649,3.2078,2627.4,2627.3,2.04031]
[1749044488848,0.6331,2627.5,2627.4,0.76078]
[1749044489639,3.2078,2628.0,2627.9,0.76064]
[1749044489840,3.2078,2628.0,2627.9,5.38464]
[1749044491750,0.6652,2628.4,2628.0,0.76061]
[1749044491751,3.2078,2628.3,2628.0,0.76061]
[1749044491943,4.5116,2628.3,2628.2,0.76055]
[1749044492454,3.2078,2628.7,2628.2,9.623]
[1749044492642,3.8394,2629.0,2628.9,0.76033]
[1749044492843,0.6316,2629.0,2628.9,0.76033]
[1749044494448,1.3038,2629.5,2629.4,0.76021]
[1749044494754,4.4773,2629.6,2629.4,0.76019]
[1749044494941,10.23746,2629.6,2629.4,0.76019]
[1749044495139,0.94716304,2629.5,2629.1,1.90074]
[1749044495351,0.94716304,2629.4,2629.3,0.76023]
[1749044495546,0.94614588,2629.4,2629.3,0.76023]
[1749044497051,0.76023,2629.3,2629.2,0.76026]
[1749044497356,4.15394588,2629.3,2629.2,0.76026]
[1749044497552,0.76031,2629.1,2629.0,0.76032]
[1749044497761,3.27511476,2629.0,2628.7,0.00570483]
[1749044497950,0.94480178,2628.9,2628.8,0.76038]
[1749044498548,0.94480178,2628.9,2628.8,6.70228]
[1749044499251,0.94480178,2628.9,2628.8,5.38238]
[1749044499757,0.94480178,2628.9,2628.8,6.70228]
[1749044500061,0.06731476,2629.0,2628.8,5.9419]
[1749044500258,0.06731476,2629.0,2628.9,0.76035]
[1749044500559,0.69891476,2629.0,2628.9,5.38235]
[1749044500752,0.69891476,2629.0,2628.9,6.63935]
[1749044501355,0.06731476,2629.0,2628.9,6.63935]
[1749044502060,0.06731476,2629.0,2628.9,4.622]
[1749044502253,0.82763476,2629.0,2628.9,4.622]
[1749044502558,1.77420893,2629.0,2628.9,4.622]
[1749044502956,1.77426103,2629.0,2628.9,4.622]
[1749044503652,0.76038,2628.8,2628.7,0.76611483]
[1749044503856,4.91480627,2628.8,2628.7,0.00570483]
[1749044504156,9.91480627,2628.8,2628.7,0.00570483]
[1749044504456,10.54280627,2628.8,2628.7,0.00570483]
[1749044505958,10.54385634,2628.8,2628.7,0.00570483]
[1749044507357,10.54385634,2628.8,2628.7,0.76611483]
[1749044507557,10.54385634,2628.8,2628.7,0.00570483]
[1749044508852,10.54385634,2628.8,2628.7,0.76611483]
[1749044509050,5.54385634,2628.8,2628.7,0.76611483]
[1749044509661,5.54385634,2628.8,2628.7,0.00570483]
[1749044509862,9.59618,2628.8,2628.7,0.00570483]
[1749044510162,10.54619528,2628.8,2628.7,0.00570483]
[1749044510661,1.90132,2628.3,2627.5,5.2556]
[1749044510857,0.76069,2627.8,2627.4,4.621]
[1749044511056,0.76069,2627.8,2627.7,0.76068]
[1749044511356,0.76076,2627.5,2627.4,5.38177]
[1749044511558,1.71110703,2627.5,2627.4,5.38178]
[1749044511757,0.95034703,2627.5,2627.4,5.38178]
[1749044513468,0.95034703,2627.5,2627.4,0.76078]
[1749044513765,1.71110703,2627.5,2627.4,0.76078]
[1749044513967,1.71206888,2627.5,2627.4,0.76078]
[1749044514865,0.76079,2627.4,2627.3,0.76079]
[1749044515063,0.95130888,2627.4,2627.2,0.00570483]
[1749044515366,1.71211888,2627.3,2627.2,0.00570483]
[1749044516357,1.71211888,2627.3,2626.5,1.90259]
[1749044516358,17.60424888,2627.3,2626.2,3.2078]
[1749044516565,0.76103,2626.6,2626.2,3.2078]
[1749044516753,3.2078,2626.8,2626.4,0.76105]
[1749044516754,0.95130888,2626.5,2626.4,0.76105]
[1749044516959,0.76105,2626.5,2626.4,0.76105]
[1749044517159,0.95130888,2626.6,2626.5,0.76104]
[1749044517356,1.71315867,2626.6,2626.5,0.76104]
[1749044517562,0.76105,2626.5,2626.3,1.28450483]
[1749044517763,0.95213867,2626.4,2626.3,2.04560483]
[1749044518069,0.95166415,2626.4,2626.3,2.04560483]
[1749044518271,0.95166415,2626.4,2626.3,6.68660483]
[1749044519973,0.95166415,2626.4,2626.3,5.92550483]
[1749044520176,1.71273415,2626.4,2626.3,5.92550483]
[1749044520571,0.95166415,2626.4,2626.3,5.92550483]
[1749044520772,0.95166415,2626.4,2626.3,6.68660483]
[1749044520973,1.71273415,2626.4,2626.3,5.92550483]
[1749044521275,0.94908666,2626.4,2626.3,6.68660483]
[1749044521471,0.94908666,2626.4,2626.3,5.92550483]
[1749044521677,1.71015666,2626.4,2626.3,5.92550483]
[1749044521973,1.71015666,2626.4,2626.3,6.68660483]
[1749044522176,0.94908666,2626.4,2626.3,6.68660483]
[1749044523271,0.76103,2626.6,2626.5,0.76105]
[1749044523567,1.7089827,2626.7,2626.5,0.76105]
[1749044523875,1.7090127,2626.6,2626.4,0.76106]
[1749044524071,0.9479827,2626.5,2626.4,0.76106]
[1749044524475,1.7090427,2626.5,2626.3,0.76679483]
[1749044524669,0.76103,2626.6,2626.4,0.76106]
[1749044524870,0.94755107,2626.5,2626.4,0.76106]
[1749044525067,3.2078,2626.8,2626.6,0.76101]
[1749044525268,1.70819783,2626.7,2626.5,0.76102]
[1749044525463,0.94720783,2626.6,2626.3,4.64770483]
[1749044525669,0.94718485,2626.5,2626.4,0.76107]
[1749044526071,1.01449961,2626.5,2626.4,0.76107]
[1749044528976,1.01454417,2626.5,2626.4,0.76107]
[1749044530480,1.77559417,2626.5,2626.4,0.76107]
[1749044530873,1.01454417,2626.5,2626.4,0.76107]
[1749044532580,0.0559051,2626.5,2626.4,5.76107]
[1749044532788,3.2078,2627.4,2626.4,8.2078]
[1749044533081,1.7087121,2627.3,2627.2,0.76084]
[1749044533380,0.9478821,2627.3,2627.2,0.76084]
[1749044534679,0.9478821,2627.3,2627.2,5.40384]
[1749044537080,0.00566788,2627.7,2627.6,0.76073]
[1749044537388,0.00566788,2627.7,2627.6,5.40373]
[1749044537777,0.00566788,2627.7,2627.6,6.02593]
[1749044538082,0.95538198,2627.7,2627.6,6.64463]
[1749044538676,0.95538198,2627.7,2627.6,6.94446167]
[1749044538885,0.95538198,2627.7,2627.6,6.64463]
[1749044539189,0.95538198,2627.7,2627.6,6.95567005]
[1749044539978,0.95538198,2627.7,2627.6,11.95567005]
[1749044540283,0.07298264,2627.7,2627.6,11.95567005]
[1749044540483,1.02523305,2627.7,2627.6,11.95567005]
[1749044541081,0.07298264,2627.7,2627.6,11.95567005]
[1749044542686,1.02447769,2627.7,2627.6,11.95567005]
[1749044543081,1.02447769,2627.7,2627.6,6.64463]
[1749044543580,1.02447769,2627.7,2627.6,2.00163]
[1749044543781,1.02447769,2627.7,2627.6,6.65563]
[1749044545285,1.02491221,2627.7,2627.6,6.65563]
[1749044545596,3.3184923,2629.2,2628.2,3.2078]
[1749044545775,3.3184923,2629.2,2627.6,19.29691359]